bitfinex/quotes_SOLUSD_20241010
["timestamp","ask_amount","ask_price","bid_price","bid_amount"]
[1728543982011,7.1261,140.33,140.29,7.128]
[1728543988894,7.1255,140.34,140.3,32.32954209]
[1728543990413,16.76228,140.38,140.3,30.904284]
[1728543990619,7.1251,140.35,140.3,30.904284]
[1728543992221,7.1251,140.35,140.31,7.1269]
[1728543993226,7.1251,140.35,140.3,23.776884]
[1728543993407,7.1251,140.35,140.3,30.904284]
[1728544003121,7.1256,140.34,140.29,24.9476]
[1728544003327,7.1261,140.33,140.29,24.9476]
[1728544013853,7.1257,140.34,140.29,24.9476]
[1728544015137,7.1252,140.35,140.3,30.904084]
[1728544024176,7.1256,140.34,140.29,24.9475]
[1728544024458,7.1265,140.32,140.27,23.130565]
[1728544025851,7.1265,140.32,140.28,7.1285]
[1728544032567,7.127,140.31,140.27,23.130565]
[1728544035058,7.1267,140.32,140.28,7.1283]
[1728544035261,7.1267,140.32,140.27,17.42752474]
[1728544035441,7.1267,140.32,140.27,24.55652474]
[1728544035967,7.1267,140.32,140.27,23.130965]
[1728544037370,7.1267,140.32,140.28,1.42555618]
[1728544037885,7.1267,140.32,140.27,23.130965]
[1728544038053,7.1271,140.31,140.27,23.130965]
[1728544042578,7.76853837,140.33,140.29,7.1279]
[1728544042751,14.89493837,140.33,140.28,24.9494]
[1728544048355,7.1268,140.32,140.28,24.9494]
[1728544048576,7.1268,140.32,140.28,17.8209]
[1728544051069,7.76853837,140.33,140.28,17.8209]
[1728544051269,7.1272,140.31,140.28,17.8209]
[1728544052757,7.1272,140.31,140.27,23.130965]
[1728544073774,7.1272,140.31,140.28,1.4255597]
[1728544075606,7.1272,140.31,140.27,23.130965]
[1728544078200,7.1272,140.31,140.28,1.42555985]
[1728544079189,7.1272,140.31,140.27,23.130965]
[1728544079583,7.1272,140.31,140.28,1.42555828]
[1728544080490,7.1272,140.31,140.27,23.130965]
[1728544082288,7.1266,140.32,140.27,23.130965]
[1728544087817,7.1266,140.32,140.28,1.4255581]
[1728544088185,7.1266,140.32,140.27,23.130965]
[1728544088389,7.1266,140.32,140.28,1.42555836]
[1728544088696,7.1266,140.32,140.27,23.130965]
[1728544094819,7.76853837,140.33,140.27,16.001965]
[1728544094820,7.1274,140.31,140.27,16.001965]
[1728544095725,25.58403837,140.33,140.27,0.631865]
[1728544095905,20.25098,140.32,140.27,0.631865]
[1728544096098,7.1282,140.29,140.27,0.631865]
[1728544096602,20.25098,140.32,140.27,0.631865]
[1728544096603,7.1276,140.3,140.27,0.631865]
[1728544097525,7.1282,140.29,140.27,0.631865]
[1728544124250,7.1285,140.28,140.27,0.631865]
[1728544124444,7.25399,140.28,140.27,0.631865]
[1728544130849,27.37948,140.28,140.27,0.631865]
[1728544140959,27.25399,140.28,140.27,0.631865]
[1728544151852,7.1282,140.29,140.27,0.631865]
[1728544154271,7.76853837,140.33,140.27,0.631865]
[1728544154272,20.0,140.32,140.27,0.631865]
[1728544154462,7.1285,140.28,140.27,0.631865]
[1728544175679,7.25399,140.28,140.27,0.631865]
[1728544178696,7.1301,140.25,140.23,0.024]
[1728544184587,7.1306,140.24,140.23,0.024]
[1728544185876,7.1302,140.25,140.23,0.024]
[1728544193275,7.1296,140.26,140.23,1.45014525]
[1728544193478,20.0,140.29,140.23,1.45014525]
[1728544193993,7.1287,140.28,140.24,22.4613]
[1728544195400,7.1287,140.28,140.24,40.2873]
[1728544197102,7.1287,140.28,140.25,1.42582953]
[1728544197285,7.1287,140.28,140.24,40.2873]
[1728544197475,7.1287,140.28,140.25,1.42582668]
[1728544197898,27.1276,140.3,140.25,15.18462668]
[1728544198089,7.1276,140.3,140.26,1.42560776]
[1728544198296,7.1276,140.3,140.26,7.1295]
[1728544200107,7.1276,140.3,140.27,1.42560515]
[1728544200601,7.1276,140.3,140.26,7.1295]
[1728544211109,7.1276,140.3,140.27,1.42560629]
[1728544211517,7.77071928,140.31,140.26,7.1295]
[1728544211687,7.77071928,140.31,140.28,22.2256]
[1728544212085,7.77071928,140.31,140.29,8.55325988]
[1728544212303,7.77071928,140.31,140.29,23.776884]
[1728544213212,7.77071928,140.31,140.28,22.2258]
[1728544213392,7.1279,140.3,140.28,15.0974]
[1728544221305,7.77071928,140.31,140.28,15.0974]
[1728544221494,14.89781928,140.31,140.28,15.0974]
[1728544223724,7.1282,140.29,140.25,6.6292]
[1728544224013,7.1286,140.28,140.24,22.7331]
[1728544237059,7.1282,140.29,140.24,22.7331]
[1728544266662,7.1282,140.29,140.25,7.1297]
[1728544266966,14.89781928,140.31,140.26,23.776884]
[1728544267140,14.89781928,140.31,140.27,8.55431841]
[1728544268170,7.77071928,140.31,140.28,7.1284]
[1728544268472,7.77071928,140.31,140.29,8.55328727]
[1728544269063,7.77071928,140.31,140.29,7.1279]
[1728544269270,7.77071928,140.31,140.27,17.8223]
[1728544269574,7.77071928,140.31,140.28,30.905284]
[1728544269954,7.77071928,140.31,140.28,32.33065948]
[1728544270471,7.77071928,140.31,140.28,30.905284]
[1728544271762,7.77071928,140.31,140.29,1.42533825]
[1728544272347,7.77071928,140.31,140.28,30.905284]
[1728544272776,7.77071928,140.31,140.29,1.4253371]
[1728544273463,7.77071928,140.31,140.29,8.5533371]
[1728544273665,7.77071928,140.31,140.29,7.128]
[1728544275683,20.0,140.36,140.28,40.026784]
[1728544275872,7.1267,140.32,140.28,47.155284]
[1728544276076,7.7690745,140.32,140.28,47.155284]
[1728544276379,7.7690745,140.32,140.28,23.3784]
[1728544276576,7.39718579,140.32,140.28,23.3784]
[1728544277173,7.39718579,140.32,140.29,1.42534693]
[1728544278774,7.39718579,140.32,140.28,23.3784]
[1728544281587,7.39718579,140.32,140.29,1.42536006]
[1728544283185,7.39718579,140.32,140.28,16.2499]
[1728544283485,7.39718579,140.32,140.29,8.55325884]
[1728544283685,7.39718579,140.32,140.29,7.1279]
[1728544283862,7.39718579,140.32,140.3,1.42521264]
[1728544284287,7.39718579,140.32,140.3,7.1274]
[1728544285170,7.1255,140.34,140.3,7.1274]
[1728544285485,20.0,140.36,140.3,7.1274]
[1728544285486,7.1251,140.35,140.31,8.55200678]
[1728544285692,7.1251,140.35,140.31,7.1269]
[1728544288292,27.1246,140.36,140.31,7.1269]
[1728544290292,7.1246,140.36,140.31,7.1269]
[1728544292684,7.1254,140.35,140.3,30.904284]
[1728544292888,14.89235169,140.35,140.3,30.904284]
[1728544293476,7.76695169,140.35,140.31,7.1265]
[1728544299275,14.89205169,140.35,140.31,7.1265]
[1728544310286,7.76695169,140.35,140.31,7.1265]
[1728544311918,7.71999698,140.35,140.31,7.1265]
[1728544325512,7.71999698,140.35,140.32,1.42507385]
[1728544325718,7.71999698,140.35,140.33,24.9403]
[1728544328735,7.71999698,140.35,140.34,1.4249262]
[1728544329733,7.71999698,140.35,140.33,24.9403]
[1728544347448,7.71999698,140.35,140.34,32.32731425]
[1728544347629,7.71999698,140.35,140.34,30.902384]
[1728544371768,7.1226,140.4,140.35,7.1247]
[1728544374050,7.1231,140.39,140.35,7.1247]
[1728544374353,14.88710118,140.39,140.35,7.1247]
[1728544375868,14.88710118,140.39,140.33,17.8146]
[1728544376075,14.88710118,140.39,140.34,7.1253]
[1728544376377,14.88710118,140.39,140.35,8.54958999]
[1728544376758,14.88710118,140.39,140.35,7.1248]
[1728544377867,14.88710118,140.39,140.36,1.42469349]
[1728544378579,14.88710118,140.39,140.35,7.1248]
[1728544379980,7.76400118,140.39,140.35,17.8122]
[1728544380158,7.76400118,140.39,140.36,23.776884]
[1728544381362,7.76400118,140.39,140.37,7.1238]
[1728544395477,7.76400118,140.39,140.36,30.901284]
[1728544404297,7.76400118,140.39,140.36,23.776884]
[1728544404591,14.88710118,140.39,140.35,24.937]
[1728544408975,14.88710118,140.39,140.35,17.8122]
[1728544409997,14.88710118,140.39,140.35,24.9372]
[1728544411800,7.1236,140.38,140.34,7.1254]
[1728544413290,14.88710118,140.39,140.34,7.1254]
[1728544428214,14.88710118,140.39,140.35,7.125]
[1728544434595,14.88710118,140.39,140.34,7.1255]
[1728544444342,14.88710118,140.39,140.31,15.2765]
[1728544444521,14.88710118,140.39,140.35,7.125]
[1728544480535,7.1235,140.38,140.34,17.8134]
[1728544483141,20.25098,140.36,140.29,7.1276]
[1728544483329,7.126,140.33,140.29,7.1276]
[1728544488644,7.1266,140.32,140.28,40.2595]
[1728544491024,7.1266,140.32,140.28,33.131]
[1728544493928,7.1274,140.31,140.26,13.4263]
[1728544494833,7.76743157,140.32,140.27,8.55456873]
[1728544495032,14.89403157,140.32,140.27,8.55456873]
[1728544500430,14.89403157,140.32,140.27,7.1289]
[1728544501751,14.89403157,140.32,140.26,6.2969]
[1728544501949,7.76743157,140.32,140.29,7.1279]
[1728544502132,7.76743157,140.32,140.29,8.55327299]
[1728544502642,7.76743157,140.32,140.29,7.1279]
[1728544503832,7.76743157,140.32,140.28,15.0524]
[1728544504030,7.76743157,140.32,140.28,22.1808]
[1728544504246,7.76743157,140.32,140.28,15.0524]
[1728544504559,7.1271,140.31,140.28,15.0524]
[1728544507857,7.1276,140.3,140.27,17.8223]
[1728544510562,7.76743157,140.32,140.27,19.24789719]
[1728544510735,14.89413157,140.32,140.27,26.37659719]
[1728544513669,14.89413157,140.32,140.28,7.1284]
[1728544513956,14.89413157,140.32,140.29,1.42539128]
[1728544513957,7.76743157,140.32,140.29,1.42539128]
[1728544514169,7.76743157,140.32,140.31,7.127]
[1728544523048,7.1246,140.36,140.31,7.127]
[1728544527478,7.1251,140.35,140.31,7.127]
[1728544528674,44.027864,140.38,140.29,33.7904]
[1728544530475,7.126,140.33,140.29,40.9183]
[1728544531274,7.126,140.33,140.29,17.8197]
[1728544535192,7.1266,140.32,140.27,7.1289]
[1728544539689,7.1277,140.3,140.26,41.1964]
[1728544540292,0.25098,140.34,140.23,6.5227]
[1728544540469,7.1286,140.28,140.23,31.4805]
[1728544541195,7.1286,140.28,140.24,7.1305]
[1728544545073,7.1284,140.29,140.24,7.1305]
[1728544545275,7.1287,140.28,140.24,7.1305]
[1728544545687,7.1287,140.28,140.23,24.3499]
[1728544545688,23.776884,140.31,140.23,17.8512]
[1728544545894,7.1292,140.27,140.23,24.9822]
[1728544547191,7.1292,140.27,140.23,26.40815275]
[1728544547397,7.1292,140.27,140.23,24.9822]
[1728544550384,20.25098,140.32,140.23,17.8512]
[1728544550580,7.1284,140.29,140.24,8.55646626]
[1728544551108,7.1284,140.29,140.24,7.1306]
[1728544551608,7.1284,140.29,140.25,8.55586991]
[1728544552194,7.1284,140.29,140.25,7.13]
[1728544552393,0.25098,140.32,140.25,7.13]
[1728544552585,7.1282,140.29,140.24,7.1305]
[1728544552790,7.1287,140.28,140.24,7.1305]
[1728544557216,7.1287,140.28,140.25,1.42586137]
[1728544557710,7.1287,140.28,140.24,7.1305]
[1728544562014,7.1287,140.28,140.25,1.42584804]
[1728544562613,7.1282,140.29,140.25,1.42584804]
[1728544563314,7.1282,140.29,140.24,7.1305]
[1728544566015,7.1282,140.29,140.25,8.55576868]
[1728544567620,7.1276,140.3,140.25,7.13]
[1728544568008,7.1276,140.3,140.26,7.1295]
[1728544569619,7.1276,140.3,140.25,7.1299]
[1728544575909,40.3007,140.33,140.24,23.776884]
[1728544576111,40.3007,140.33,140.23,17.8512]
[1728544576112,7.1291,140.27,140.23,24.9823]
[1728544580093,7.1291,140.27,140.24,1.42585932]
[1728544581309,7.1291,140.27,140.23,24.9823]
[1728544583822,12.78991433,140.35,140.24,43.776884]
[1728544584030,46.7774628,140.36,140.24,43.776884]
[1728544584031,7.1269,140.32,140.27,7.129]
[1728544585307,7.1275,140.31,140.26,15.0802]
[1728544585527,7.1278,140.3,140.26,15.0802]
[1728544585707,7.1282,140.29,140.26,15.0802]
[1728544587023,46.318864,140.33,140.23,16.6032]
[1728544587230,7.1286,140.28,140.23,23.7342]
[1728544588007,7.1286,140.28,140.24,7.1305]
[1728544588723,7.1286,140.28,140.25,1.42584677]
[1728544588925,7.1286,140.28,140.24,7.1305]
[1728544591234,7.1286,140.28,140.23,16.6032]
[1728544591435,7.1286,140.28,140.23,23.7342]
[1728544596140,17.8169,140.32,140.23,16.6032]
[1728544596312,7.1292,140.27,140.23,16.6032]
[1728544600117,0.12549,140.31,140.23,25.16028859]
[1728544600317,7.1275,140.3,140.24,17.826]
[1728544601520,7.1275,140.3,140.26,7.1295]
[1728544606446,7.1275,140.3,140.24,17.826]
[1728544606624,7.1275,140.3,140.25,7.1299]
[1728544607958,7.1282,140.29,140.24,24.9564]
[1728544609557,7.1282,140.29,140.25,7.13]
[1728544616857,7.1286,140.28,140.24,24.9564]
[1728544618364,7.1286,140.28,140.24,26.38223917]
[1728544619270,20.12549,140.32,140.24,26.38223917]
[1728544619565,7.1282,140.29,140.24,26.38223917]
[1728544621144,7.1282,140.29,140.24,24.9564]
[1728544622764,7.1282,140.29,140.24,17.826]
[1728544623066,7.1282,140.29,140.25,7.13]
[1728544629971,20.12549,140.32,140.23,16.6032]
[1728544630164,7.1296,140.26,140.23,16.6032]
[1728544630549,7.1296,140.26,140.23,0.024]
[1728544631871,20.25098,140.28,140.23,0.024]
[1728544632052,7.1306,140.24,140.23,0.024]
[1728544633373,7.25609,140.24,140.23,0.024]
[1728544636244,27.38158,140.24,140.23,0.024]
[1728544636468,27.25609,140.24,140.23,0.024]
[1728544636675,27.1306,140.24,140.23,0.024]
[1728544636991,20.0,140.24,140.23,0.024]
[1728544637273,27.1306,140.24,140.23,0.024]
[1728544639350,20.0,140.24,140.23,0.024]
[1728544640377,7.1301,140.25,140.23,0.024]
[1728544654381,7.1306,140.24,140.23,0.024]
[1728544665806,7.25609,140.24,140.23,0.024]
[1728544665992,7.38158,140.24,140.23,0.024]
[1728544671601,7.1306,140.24,140.23,0.024]
[1728544675799,7.38158,140.24,140.23,0.024]
[1728544675991,51.158464,140.24,140.23,0.024]
[1728544680496,51.158464,140.24,140.17,40.505]
[1728544680497,7.1325,140.21,140.17,40.505]
[1728544681087,0.12549,140.23,140.17,40.505]
[1728544681088,0.12549,140.23,140.17,22.67]
[1728544681289,7.133,140.2,140.17,22.67]
[1728544682188,7.133,140.2,140.17,24.09667067]
[1728544682388,20.25098,140.23,140.17,24.09667067]
[1728544682589,7.1322,140.21,140.17,24.09667067]
[1728544683896,7.1322,140.21,140.17,22.67]
[1728544684097,7.1322,140.21,140.17,24.09662942]
[1728544684301,7.1322,140.21,140.17,22.67]
[1728544685492,7.1322,140.21,140.17,24.09662777]
[1728544685985,7.1322,140.21,140.17,24.09666776]
[1728544686686,7.1322,140.21,140.17,22.67]
[1728544686890,7.1322,140.21,140.17,24.09662852]
[1728544699323,0.12549,140.23,140.17,24.09662852]
[1728544699626,7.1318,140.22,140.18,1.42656412]
[1728544699995,7.1318,140.22,140.17,29.8038]
[1728544700720,7.1318,140.22,140.17,31.23037633]
[1728544701406,7.1318,140.22,140.17,29.8038]
[1728544702137,7.1318,140.22,140.18,1.42657941]
[1728544702336,7.1318,140.22,140.17,29.8038]
[1728544703531,7.1321,140.21,140.17,29.8038]
[1728544705230,7.1321,140.21,140.17,31.23039757]
[1728544705626,7.1321,140.21,140.17,29.8038]
[1728544706732,7.1318,140.22,140.18,1.42658065]
[1728544707310,7.1318,140.22,140.17,29.8038]
[1728544707524,7.1318,140.22,140.17,31.23037988]
[1728544710033,7.1321,140.21,140.17,23.4021]
[1728544710330,7.1326,140.2,140.17,16.2683]
[1728544713243,17.8295,140.22,140.13,18.6622983]
[1728544713444,17.8295,140.22,140.13,0.8224983]
[1728544713445,44.027864,140.21,140.13,0.8224983]
[1728544714313,7.135,140.16,140.13,0.8224983]
[1728544715041,7.1357,140.14,140.13,0.8224983]
[1728544715212,27.38668,140.14,140.13,0.8224983]
[1728544716227,27.38668,140.14,140.07,24.9871]
[1728544716228,20.12549,140.13,140.07,24.9871]
[1728544716429,7.1372,140.11,140.07,17.848]
[1728544717037,7.1367,140.12,140.07,24.9872]
[1728544717826,7.26169,140.13,140.08,8.56624138]
[1728544718029,7.26169,140.13,140.08,7.1387]
[1728544722355,7.1362,140.13,140.08,7.1387]
[1728544723541,20.0,140.13,140.09,7.1381]
[1728544724831,20.0,140.13,140.07,17.848]
[1728544725035,7.1362,140.13,140.08,7.1387]
[1728544726137,20.0,140.13,140.1,7.1377]
[1728544726440,27.1357,140.14,140.1,7.1377]
[1728544727361,27.1357,140.14,140.09,24.983]
[1728544728460,0.12549,140.16,140.09,24.983]
[1728544728461,7.1363,140.13,140.09,24.983]
[1728544732037,7.1367,140.12,140.09,17.8449]
[1728544733463,7.1367,140.12,140.08,7.1386]
[1728544733660,0.25098,140.16,140.08,7.1386]
[1728544733844,7.1363,140.13,140.08,7.1386]
[1728544735565,7.1369,140.12,140.08,7.1386]
[1728544735761,7.1369,140.12,140.06,33.845]
[1728544735981,7.1369,140.12,140.07,7.1391]
[1728544743157,43.776884,140.15,140.07,7.1391]
[1728544743362,7.1372,140.11,140.07,8.56672413]
[1728544743948,7.1372,140.11,140.07,7.1391]
[1728544747260,7.138,140.1,140.06,33.845]
[1728544747459,7.138,140.1,140.06,40.9846]
[1728544747760,7.1374,140.11,140.06,42.412304]
[1728544747955,7.1374,140.11,140.06,40.9846]
[1728544748158,7.1374,140.11,140.06,42.41229333]
[1728544748676,7.1378,140.1,140.06,40.9846]
[1728544749556,7.1398,140.06,140.0,16.2198983]
[1728544749757,7.1398,140.06,140.02,7.1417]
[1728544750061,7.1398,140.06,140.01,7.1422]
[1728544751261,0.12549,140.07,140.0,34.0763983]
[1728544751452,7.26479,140.07,140.02,7.1413]
[1728544751768,7.1393,140.07,140.03,7.1412]
[1728544752172,27.1388,140.08,140.03,7.1412]
[1728544753672,7.39028,140.07,140.02,24.9956]
[1728544754479,7.1393,140.07,140.02,24.9956]
[1728544756780,20.0,140.04,140.0,7.9652983]
[1728544756965,7.1409,140.04,140.0,0.8224983]
[1728544757786,7.1413,140.03,140.0,0.8224983]
[1728544758783,7.1419,140.02,140.0,0.8224983]
[1728544758964,7.1417,140.03,140.0,0.8224983]
[1728544760968,7.1419,140.02,140.0,0.8224983]
[1728544761667,0.12549,140.04,140.0,0.8224983]
[1728544761668,7.1413,140.03,140.0,0.8224983]
[1728544763685,20.25098,140.04,140.0,0.8224983]
[1728544763875,7.1419,140.02,140.0,0.8224983]
[1728544765274,20.25098,140.04,140.0,0.8224983]
[1728544765473,20.0,140.02,140.0,0.8224983]
[1728544765985,27.142,140.02,140.0,0.8224983]
[1728544766864,7.26779,140.01,140.0,0.8224983]
[1728544769987,7.39328,140.01,140.0,0.8224983]
[1728544778295,27.39328,140.01,140.0,0.8224983]
[1728544782898,27.26779,140.01,140.0,0.8224983]
[1728544783097,20.12549,140.01,140.0,0.8224983]
[1728544784171,20.0,140.01,140.0,0.8224983]
[1728544784901,27.26779,140.01,140.0,0.8224983]
[1728544786598,7.1419,140.02,140.0,0.8224983]
[1728544787880,0.12549,140.03,140.0,0.8224983]
[1728544788198,7.39328,140.01,140.0,0.8224983]
[1728544789098,7.26779,140.01,140.0,0.8224983]
[1728544790103,7.1423,140.01,140.0,0.8224983]
[1728544793404,7.26779,140.01,140.0,0.8224983]
[1728544795388,7.39328,140.01,140.0,0.8224983]
[1728544796896,27.39328,140.01,140.0,0.8224983]
[1728544802606,20.0,140.01,140.0,0.8224983]
[1728544803706,7.1414,140.03,140.0,0.8224983]
[1728544803904,20.0,140.02,140.0,0.8224983]
[1728544806109,17.8501,140.06,140.0,0.8224983]
[1728544806110,7.1398,140.06,140.01,7.1422]
[1728544806422,7.1404,140.05,140.01,7.1422]
[1728544808015,7.1399,140.06,140.01,7.1422]
[1728544808217,20.0,140.05,140.01,7.1422]
[1728544808390,7.1399,140.06,140.01,7.1422]
[1728544811616,7.1393,140.07,140.02,8.56982841]
[1728544811799,20.25098,140.09,140.0,34.3529983]
[1728544812146,7.1392,140.07,140.02,7.1413]
[1728544813605,7.1392,140.07,140.03,7.1411]
[1728544816321,20.25098,140.09,140.03,7.1411]
[1728544816490,20.0,140.07,140.03,7.1411]
[1728544817598,7.1389,140.08,140.03,7.1411]
[1728544818522,7.1389,140.08,140.03,8.56906923]
[1728544819528,7.1378,140.1,140.06,7.1397]
[1728544820316,3.72295524,140.12,140.06,7.1397]
[1728544820622,7.1373,140.11,140.06,7.1397]
[1728544820808,20.0,140.1,140.06,7.1397]
[1728544821305,7.1378,140.1,140.06,7.1397]
[1728544824207,7.1373,140.11,140.06,7.1397]
[1728544826530,7.1373,140.11,140.05,23.776884]
[1728544826737,7.1373,140.11,140.07,7.1392]
[1728544826902,7.1371,140.12,140.07,7.1392]
[1728544827901,7.1376,140.11,140.06,24.9884]
[1728544828107,0.25098,140.13,140.06,24.9884]
[1728544829546,7.1379,140.1,140.06,24.9884]
[1728544830322,0.25098,140.13,140.06,17.8488]
[1728544830518,7.1363,140.13,140.09,7.1381]
[1728544830933,20.0,140.12,140.08,7.1386]
[1728544832132,7.1368,140.12,140.08,7.1386]
[1728544833434,0.25098,140.14,140.09,7.1381]
[1728544834012,20.0,140.12,140.08,24.9846]
[1728544834415,27.1367,140.12,140.08,24.9846]
[1728544838139,7.1362,140.13,140.09,7.138]
[1728544842939,20.0,140.13,140.09,7.138]
[1728544844722,7.1358,140.14,140.09,7.138]
[1728544850043,7.1362,140.13,140.09,7.138]
[1728544852464,7.1369,140.12,140.08,40.0004]
[1728544860446,20.25098,140.16,140.08,40.0004]
[1728544860759,7.1362,140.13,140.08,40.0004]
[1728544865445,7.1368,140.12,140.08,40.0004]
[1728544870144,0.12549,140.11,140.05,17.8501]
[1728544870352,7.1383,140.09,140.05,24.9903]
[1728544872282,0.12549,140.11,140.05,24.9903]
[1728544872283,7.1378,140.1,140.05,17.8501]
[1728544872475,7.1378,140.1,140.06,7.1397]
[1728544873372,0.12549,140.11,140.06,7.1397]
[1728544873585,7.26289,140.11,140.06,7.1397]
[1728544873785,7.138,140.1,140.06,7.1397]
[1728544874465,7.138,140.1,140.05,17.8501]
[1728544874765,7.138,140.1,140.05,24.9902]
[1728544878169,7.1388,140.08,140.03,22.408]
[1728544881479,7.1388,140.08,140.03,15.2669]
[1728544881682,7.1383,140.09,140.04,7.1405]
[1728544894191,7.1383,140.09,140.04,23.776884]
[1728544894398,7.26329,140.1,140.05,7.1403]
[1728544894994,7.1378,140.1,140.06,23.776884]
[1728544895298,20.0,140.11,140.07,7.1392]
[1728544903405,7.1372,140.11,140.07,7.1392]
[1728544911402,20.0,140.13,140.06,17.8491]
[1728544911403,0.12549,140.12,140.06,17.8491]
[1728544911610,7.26229,140.12,140.08,7.1387]
[1728544911792,7.26229,140.12,140.07,30.915984]
[1728544912511,0.12549,140.12,140.07,30.915984]
[1728544912714,7.1372,140.11,140.07,30.915984]
[1728544921911,7.1381,140.1,140.06,17.8491]
[1728544923309,0.12549,140.12,140.06,17.8491]
[1728544923516,7.1378,140.1,140.06,17.8491]
[1728544924492,7.1378,140.1,140.06,24.9887]
[1728544929020,0.25098,140.13,140.07,23.776884]
[1728544929209,7.1373,140.11,140.07,30.915884]
[1728544929810,0.25098,140.13,140.07,30.915884]
[1728544930128,7.1367,140.12,140.07,30.915884]
[1728544930498,7.1367,140.12,140.08,7.1386]
[1728544945432,27.1361,140.14,140.09,30.914684]
[1728544945728,22.85694271,140.16,140.09,32.34242527]
[1728544945729,7.1362,140.13,140.09,32.34242527]
[1728544947632,7.1362,140.13,140.09,30.915084]
[1728544949839,7.1368,140.12,140.09,23.776884]
[1728544952930,20.0,140.16,140.11,23.776884]
[1728544953113,20.0,140.14,140.12,23.776884]
[1728544953520,20.0,140.14,140.11,23.776884]
[1728544954023,7.1359,140.14,140.08,23.984]
[1728544954226,7.1359,140.14,140.09,30.915084]
[1728544955539,7.1363,140.13,140.09,30.915084]
[1728544964430,20.0,140.12,140.08,17.8464]
[1728544964626,7.1373,140.11,140.08,23.776884]
[1728544965751,7.1369,140.12,140.08,23.776884]
[1728544969542,20.25098,140.13,140.07,15.2413]
[1728544969850,7.1382,140.09,140.05,17.8499]
[1728544970834,7.1382,140.09,140.05,24.99]
[1728544971235,7.1382,140.09,140.06,23.776884]
[1728544971558,7.1378,140.1,140.06,23.776884]
[1728544971927,7.1378,140.1,140.06,30.916584]
[1728544976754,7.1367,140.12,140.08,7.1386]
[1728544977058,7.1367,140.12,140.09,23.776884]
[1728544980662,7.1367,140.12,140.08,7.1386]
[1728544980864,7.1367,140.12,140.07,24.9867]
[1728544981268,7.1373,140.11,140.07,24.9867]
[1728544981462,7.1373,140.11,140.07,17.8476]
[1728544981674,7.1381,140.1,140.05,7.1398]
[1728544981980,7.1381,140.1,140.06,7.1396]
[1728544982141,7.1373,140.11,140.06,7.1396]
[1728544984371,0.25098,140.13,140.04,40.8995]
[1728544984548,7.1386,140.09,140.05,23.776884]
[1728544984946,7.1379,140.1,140.05,30.916984]
[1728544986760,0.12549,140.13,140.05,23.776884]
[1728544986967,0.12549,140.13,140.08,7.1384]
[1728544986968,7.1366,140.13,140.08,7.1384]
[1728544987170,0.25098,140.14,140.08,7.1384]
[1728544987774,7.137,140.12,140.07,30.915984]
[1728544990071,7.1374,140.11,140.07,30.915984]
[1728544996786,7.1368,140.12,140.08,7.1385]
[1728544996989,7.1368,140.12,140.08,8.56606194]
[1728544997175,7.1368,140.12,140.08,7.1385]
[1728544997375,7.1368,140.12,140.08,8.56599728]
[1728544998071,7.1368,140.12,140.08,7.1385]
[1728544999391,7.1368,140.12,140.07,23.776884]
[1728544999595,7.1368,140.12,140.07,30.915984]
[1728545000494,7.1373,140.11,140.07,30.915984]
[1728545002689,20.0,140.13,140.07,23.776884]
[1728545002997,7.1378,140.1,140.07,23.776884]
[1728545003665,7.1378,140.1,140.06,24.9886]
[1728545009997,0.25098,140.12,140.06,24.9886]
[1728545010172,7.1374,140.11,140.06,24.9886]
[1728545011697,7.1381,140.1,140.06,17.8489]
[1728545011999,7.1391,140.08,140.04,23.7036]
[1728545012164,18.09358,140.12,140.04,23.7036]
[1728545012364,7.1384,140.09,140.04,23.7036]